fUSD/lending_fUSD_20240515
["ID","MTS","AMOUNT","RATE_DAILY","PERIOD"]
[327049012,1715741443179,-655.95383764,0.00013,2]
[327049013,1715741443190,-25848.4982993,0.00013,2]
[327049014,1715741443201,-149226.63426234,0.00013,2]
[327049015,1715741443211,-2110.779,0.00013,2]
[327049016,1715741443220,-531927.49470983,0.00013,2]
[327049017,1715741443230,-11822.72990466,0.00013,2]
[327049018,1715741443597,-5683.13859681,0.00013,2]
[327049019,1715741443609,-19527.30545311,0.00013,2]
[327049020,1715741443622,-200318.90439827,0.00013,2]
[327049022,1715741445865,-4264.99991212,0.00010653,2]
[327049023,1715741445875,-432.99844045,0.00010653,2]
[327049024,1715741445884,-221.7,0.00010959,2]
[327049025,1715741445893,-1000.0,0.00012998,2]
[327049026,1715741445902,-251.58179592,0.00012998,2]
[327049027,1715741445911,-155.0,0.00012998,2]
[327049028,1715741445920,-327.32319292,0.00012999,2]
[327049029,1715741445929,-23171.51191752,0.00013,2]
[327049030,1715741445940,-154901.50884722,0.00013,2]
[327049060,1715742632081,-656.14610936,9.005e-05,2]
[327049062,1715742632091,-155.0,9.006e-05,2]
[327049064,1715742632102,-1715.44985094,9.007e-05,2]
[327049065,1715742632111,-1715.44985092,9.008e-05,2]
[327049066,1715742632122,-939.02688406,9.009e-05,2]
[327049067,1715742632142,-160.32,9.044e-05,2]
[327049068,1715742632154,-350.138049,9.438e-05,2]
[327049069,1715742632165,-3443.92,9.486e-05,2]
[327049070,1715742632176,-281.33,0.00010411,2]
[327049071,1715742632185,-333.72,0.00010959,2]
[327049072,1715742632195,-278.1,0.00010959,2]
[327049073,1715742632205,-231.75,0.00010959,2]
[327049074,1715742632214,-193.13,0.00010959,2]
[327049075,1715742632224,-160.94,0.00010959,2]
[327049076,1715742632234,-804.71,0.00010959,2]
[327049077,1715742632243,-200.0,0.00011,2]
[327049078,1715742632253,-250.0,0.00011291,2]
[327049079,1715742632263,-150.0,0.00011304,2]
[327049080,1715742632272,-250.0,0.00011305,2]
[327049081,1715742632282,-1542.53,0.00011319,2]
[327049082,1715742632291,-360.0,0.00011325,2]
[327049083,1715742632301,-172.22,0.00011348,2]
[327049084,1715742632310,-23900.0,0.00011359,2]
[327049085,1715742632320,-286.77,0.0001158,2]
[327049086,1715742632329,-640.0,0.00011608,2]
[327049087,1715742632339,-300.37802761,0.00011698,2]
[327049088,1715742632348,-19600.1235667,0.00011749,2]
[327049089,1715742632358,-3443.92,0.0001175,2]
[327049090,1715742632367,-177.08,0.00011845,2]
[327049091,1715742632377,-1000.0,0.00012,2]
[327049092,1715742632386,-19623.11442373,0.00012,2]
[327049093,1715742632395,-200.0,0.00012,4]
[327049094,1715742632404,-500.0,0.000121,4]
[327049095,1715742632414,-13840.146,0.000122,2]
[327049096,1715742632423,-800.0,0.000122,4]
[327049097,1715742632432,-1100.0,0.000123,4]
[327049098,1715742632442,-1400.0,0.000124,4]
[327049099,1715742632452,-237.965722,0.00012465,2]
[327049100,1715742632462,-200.0,0.000125,4]
[327049101,1715742632472,-174.04,0.00012573,2]
[327049102,1715742632483,-200.0,0.000126,4]
[327049103,1715742632493,-500.0,0.00012612,2]
[327049104,1715742632502,-500.0,0.00012621,2]
[327049105,1715742632511,-237.965722,0.00012621,2]
[327049106,1715742632520,-500.0,0.00012629,2]
[327049107,1715742632530,-500.0,0.00012638,2]
[327049108,1715742632540,-500.0,0.00012647,2]
[327049109,1715742632549,-500.0,0.00012656,2]
[327049110,1715742632559,-500.0,0.00012665,2]
[327049111,1715742632568,-500.0,0.00012673,2]
[327049112,1715742632579,-500.0,0.00012682,2]
[327049113,1715742632588,-500.0,0.00012691,2]
[327049114,1715742632597,-2500.0,0.00012699,2]
[327049115,1715742632607,-500.0,0.000127,2]
[327049116,1715742632617,-1000.0,0.000127,2]
[327049117,1715742632626,-200.0,0.000127,4]
[327049119,1715742632635,-1000.0,0.000127,2]
[327049121,1715742632645,-500.0,0.00012709,2]
[327049123,1715742632655,-500.0,0.00012717,2]
[327049125,1715742632664,-500.0,0.00012726,2]
[327049127,1715742632674,-500.0,0.00012735,2]
[327049129,1715742632683,-360.0,0.0001274,2]
[327049131,1715742632693,-500.0,0.00012744,2]
[327049133,1715742632702,-500.0,0.00012753,2]
[327049135,1715742632711,-500.0,0.00012761,2]
[327049137,1715742632721,-500.0,0.0001277,2]
[327049139,1715742632730,-237.965722,0.00012777,2]
[327049141,1715742632740,-500.0,0.00012779,2]
[327049144,1715742632753,-500.0,0.00012788,2]
[327049146,1715742632762,-237.08,0.00012789,2]
[327049148,1715742632772,-500.0,0.00012797,2]
[327049150,1715742632781,-8984.922,0.00012799,2]
[327049152,1715742632790,-147442.8223,0.00012799,2]
[327049154,1715742632799,-197.62352658,0.00012799,2]
[327049156,1715742632809,-5000.0,0.000128,2]
[327049158,1715742632818,-200.0,0.000128,4]
[327049160,1715742632827,-1000.0,0.000128,2]
[327049162,1715742632836,-500.0,0.00012805,2]
[327049164,1715742632845,-500.0,0.00012814,2]
[327049166,1715742632854,-500.0,0.00012823,2]
[327049168,1715742632864,-500.0,0.00012832,2]
[327049170,1715742632874,-1358.77,0.00012876,2]
[327049172,1715742632883,-1613.94,0.00012876,2]
[327049174,1715742632893,-500.0,0.00012876,2]
[327049176,1715742632902,-500.0,0.00012876,2]
[327049177,1715742632912,-500.0,0.00012876,2]
[327049178,1715742632921,-500.0,0.00012876,2]
[327049179,1715742632932,-500.0,0.00012876,2]
[327049180,1715742632941,-500.0,0.00012876,2]
[327049181,1715742632950,-237.08,0.00012889,2]
[327049182,1715742632960,-1000.0,0.00012896,2]
[327049183,1715742632970,-500.0,0.00012896,2]
[327049184,1715742632980,-1358.77,0.00012898,2]
[327049185,1715742632989,-1613.94,0.00012898,2]
[327049186,1715742633000,-500.0,0.00012898,2]
[327049187,1715742633010,-500.0,0.00012898,2]
[327049188,1715742633020,-3565.9513,0.00012898,2]
[327049189,1715742633030,-15595.9452,0.00012898,2]
[327049190,1715742633040,-128099.98033081,0.00012899,2]
[327049191,1715742633054,-7057.21140862,0.00012899,2]
[327049192,1715742633066,-1604.80885638,0.00012899,2]
[327049193,1715742633092,-285.3,9.009e-05,2]
[327049194,1715742638220,-1430.14985092,9.009e-05,2]
[327049195,1715742638230,-22010.79160419,0.00012899,2]
[327049196,1715742638239,-500.0,0.00012899,2]
[327049197,1715742638248,-500.0,0.00012899,2]
[327049198,1715742638258,-500.0,0.00012899,2]
[327049199,1715742638267,-500.0,0.00012899,2]
[327049200,1715742638277,-7500.0,0.00012899,2]
[327049201,1715742638286,-1000.0,0.000129,2]
[327049202,1715742638296,-37741.2498,0.000129,2]
[327049203,1715742638305,-1000.0,0.000129,4]
[327049204,1715742638315,-1410.63141535,0.000129,2]
[327049205,1715742638324,-1410.6314153,0.000129,2]
[327049206,1715742638333,-1410.6314153,0.000129,2]
[327049207,1715742638342,-1410.6314153,0.000129,2]
[327049208,1715742638351,-1410.6314153,0.000129,2]
[327049209,1715742638362,-1410.6314153,0.000129,2]
[327049210,1715742638371,-1410.6314153,0.000129,2]
[327049211,1715742638380,-1410.6314153,0.000129,2]
[327049212,1715742638390,-237.965722,0.00012933,2]
[327049213,1715742638399,-237.08,0.00012989,2]
[327049214,1715742638408,-237.08,0.0001299,2]
[327049215,1715742638417,-153.4,0.0001299,2]
[327049216,1715742638427,-153.4,0.0001299,2]
[327049217,1715742638436,-153.4,0.0001299,2]
[327049218,1715742638445,-153.4,0.0001299,2]
[327049219,1715742638455,-153.4,0.0001299,2]
[327049220,1715742638465,-237.08,0.0001299,2]
[327049221,1715742638474,-237.08,0.0001299,2]
[327049222,1715742638484,-237.08,0.0001299,2]
[327049223,1715742638493,-237.08,0.0001299,2]
[327049225,1715742638502,-237.08,0.0001299,2]
[327049227,1715742638511,-237.08,0.0001299,2]
[327049229,1715742638521,-1613.94,0.00012996,2]
[327049231,1715742638530,-500.0,0.00012996,2]
[327049232,1715742638539,-500.0,0.00012996,2]
[327049233,1715742638548,-1358.77,0.00012997,2]
[327049234,1715742638557,-327.32319292,0.00012997,2]
[327049235,1715742638567,-251.58179592,0.00012997,2]
[327049236,1715742638576,-1000.0,0.00012997,2]
[327049237,1715742638586,-155.0,0.00012998,2]
[327049238,1715742638596,-625.57030975,0.00012998,2]
[327049239,1715742638607,-2869.04125605,0.00012998,2]
[327049240,1715742638616,-1343.63972586,0.00012998,2]
[327049241,1715742638625,-1065.9300328,0.00012998,2]
[327049242,1715742638639,-9764.79554906,0.00012998,2]
[327049243,1715742638650,-1358.77,0.00012998,2]
[327049244,1715742638661,-1613.94,0.00012998,2]
[327049245,1715742638670,-500.0,0.00012998,2]
[327049246,1715742638681,-500.0,0.00012998,2]
[327049247,1715742638691,-561.1572211,0.00012998,2]
[327049248,1715742638701,-500.0,0.00012998,2]
[327049249,1715742638711,-1431.07924661,0.00012999,2]
[327049250,1715742638720,-281.05079772,0.00012999,2]
[327049251,1715742638730,-290.96074423,0.00012999,2]
[327049252,1715742638739,-359.62603416,0.00012999,2]
[327049253,1715742638749,-208.5906131,0.00012999,2]
[327049254,1715742638759,-882.24821208,0.00012999,2]
[327049255,1715742638771,-2598.47316635,0.00012999,2]
[327049256,1715742638783,-2385.01591777,0.00012999,2]
[327049257,1715742638792,-709.88408226,0.00012999,3]
[327049258,1715742638804,-38.69903291,0.00012999,3]
[327049259,1715742638813,-1358.77,0.00012999,2]
[327049260,1715742638822,-1234.33634061,0.00012999,2]
[327049261,1715742638834,-124.43365939,0.00012999,2]
[327049262,1715742638843,-1296.56634061,0.00012999,2]
[327049263,1715742638855,-62.20365939,0.00012999,2]
[327049264,1715742638864,-451.94566684,0.00012999,2]
[327049265,1715742640181,-332.88138164,0.00012999,2]
[327049266,1715742640476,-573.94295152,0.00012999,2]
[327049267,1715742640486,-1358.77,0.00012999,2]
[327049268,1715742640496,-709.43726184,0.00012999,2]
[327049269,1715742640508,-296.85043924,0.00012999,2]
[327049270,1715742640519,-302.426,0.00012999,2]
[327049271,1715742640759,-50.05629892,0.00012999,2]
[327049272,1715742640769,-1358.77,0.00012999,2]
[327049273,1715742640778,-547.67359729,0.00012999,2]
[327049274,1715742640790,-811.09640271,0.00012999,2]
[327049275,1715742640800,-1358.77,0.00012999,2]
[327049276,1715742640809,-1358.77,0.00012999,2]
[327049277,1715742640819,-793.66312936,0.00012999,2]
[327049278,1715742640831,-565.10687064,0.00012999,2]
[327049279,1715742640841,-1358.77,0.00012999,2]
[327049280,1715742640850,-1132.87312936,0.00012999,2]
[327049299,1715742643010,-225.89687064,0.00012999,2]
[327049300,1715742643019,-1358.77,0.00012999,2]
[327049301,1715742643028,-1358.77,0.00012999,2]
[327049302,1715742643038,-522.35998296,0.00012999,2]
[327049303,1715742643249,-836.41001704,0.00012999,2]
[327049304,1715742643259,-618.58998296,0.00012999,2]
[327049305,1715742643270,-740.18001704,0.00012999,2]
[327049306,1715742643279,-976.06577602,0.00012999,2]
[327049307,1715742643290,-382.70422398,0.00012999,2]
[327049308,1715742643300,-506.34212568,0.00012999,2]
[327049309,1715742643567,-852.42787432,0.00012999,2]
[327049310,1715742643577,-1358.77994265,0.00012999,2]
[327049311,1715742643588,-1613.94,0.00012999,2]
[327049312,1715742643598,-1613.94,0.00012999,2]
[327049313,1715742643608,-1613.94,0.00012999,2]
[327049314,1715742643618,-1613.94,0.00012999,2]
[327049315,1715742643627,-1231.0555974,0.00012999,2]
[327049316,1715742643639,-382.8844026,0.00012999,2]
[327049317,1715742643649,-993.8701374,0.00012999,2]
[327049318,1715742643997,-620.0698626,0.00012999,2]
[327049319,1715742644008,-241.9401372,0.00012999,2]
[327049320,1715742644022,-1371.9998628,0.00012999,2]
[327049321,1715742644031,-1613.94,0.00012999,2]
[327049322,1715742644041,-1613.94,0.00012999,2]
[327049323,1715742644050,-1613.94,0.00012999,2]
[327049324,1715742644060,-1613.94,0.00012999,2]
[327049325,1715742644069,-1613.94,0.00012999,2]
[327049326,1715742644078,-1613.94,0.00012999,2]
[327049327,1715742644093,-1613.94,0.00012999,2]
[327049328,1715742644102,-1613.94,0.00012999,2]
[327049329,1715742644111,-1613.94,0.00012999,2]
[327049330,1715742644121,-1613.94,0.00012999,2]
[327049331,1715742644132,-1613.94,0.00012999,2]
[327049332,1715742644141,-1613.94,0.00012999,2]
[327049333,1715742644150,-1614.14761164,0.00012999,2]
[327049334,1715742644160,-500.0,0.00012999,2]
[327049335,1715742644172,-500.0,0.00012999,2]
[327049336,1715742644183,-500.0,0.00012999,2]
[327049337,1715742644194,-500.0,0.00012999,2]
[327049338,1715742644203,-500.0,0.00012999,2]
[327049339,1715742644212,-500.0,0.00012999,2]
[327049340,1715742644221,-440.38814125,0.00012999,2]
[327049341,1715742644231,-500.0,0.00012999,2]
[327049342,1715742644240,-500.0,0.00012999,2]
[327049343,1715742644252,-500.0,0.00012999,2]
[327049344,1715742644261,-500.0,0.00012999,2]
[327049345,1715742644271,-500.0,0.00012999,2]
[327049346,1715742644280,-500.0,0.00012999,2]
[327049347,1715742644290,-500.0,0.00012999,2]
[327049348,1715742644299,-500.0,0.00012999,2]
[327049349,1715742644309,-500.0,0.00012999,2]
[327049350,1715742644319,-500.0,0.00012999,2]
[327049351,1715742644329,-500.0,0.00012999,2]
[327049352,1715742644339,-500.0,0.00012999,2]
[327049353,1715742644350,-500.0,0.00012999,2]
[327049354,1715742644360,-152.71741022,0.00012999,2]
[327049355,1715742644370,-500.0,0.00012999,2]
[327049356,1715742644379,-500.0,0.00012999,2]
[327049357,1715742644391,-500.0,0.00012999,2]
[327049358,1715742644400,-500.0,0.00012999,2]
[327049359,1715742644410,-500.0,0.00012999,2]
[327049360,1715742644419,-614.84333785,0.00012999,2]
[327049361,1715742644428,-500.0,0.00012999,2]
[327049362,1715742644437,-500.0,0.00012999,2]
[327049363,1715742644447,-183.43784179,0.00012999,2]
[327049364,1715742644456,-500.0,0.00012999,2]
[327049365,1715742644465,-500.0,0.00012999,2]
[327049366,1715742644475,-500.0,0.00012999,2]
[327049367,1715742644484,-407.59,0.00012999,2]
[327049368,1715742644493,-178.094,0.00012999,2]
[327049369,1715742644503,-150.182,0.00012999,2]
[327049370,1715742644512,-2158.0,0.00012999,2]
[327049371,1715742644521,-1226.0,0.00012999,2]
[327049372,1715742644530,-1261.0,0.00012999,2]
[327049373,1715742644540,-543.0,0.00012999,2]
[327049374,1715742644549,-1185.987,0.00012999,2]
[327049375,1715742644558,-438.0,0.00012999,2]
[327049376,1715742644568,-612.0,0.00012999,2]
[327049377,1715742644577,-810.0,0.00012999,2]
[327049378,1715742644587,-421.527,0.00012999,2]
[327049379,1715742644596,-162.958,0.00012999,2]
[327049380,1715742644609,-1646.0,0.00012999,2]
[327049381,1715742644621,-150.0,0.00012999,2]
[327049382,1715742644631,-150.0,0.00012999,2]
[327049383,1715742644640,-2351.0,0.00012999,2]
[327049384,1715742644649,-444.0,0.00012999,2]
[327049385,1715742644659,-215.0,0.00012999,2]
[327049386,1715742644668,-1138.0,0.00012999,2]
[327049387,1715742644678,-3157.0,0.00012999,2]
[327049388,1715742644687,-287.485,0.00012999,2]
[327049389,1715742644696,-5911.0,0.00012999,2]
[327049390,1715742644706,-5750.0,0.00012999,2]
[327049391,1715742644715,-25036.11353588,0.00012999,2]
[327049408,1715742646051,-542.40194761,0.00012876,2]
[327049410,1715742646061,-19640.7594321,0.00012998,2]
[327049412,1715742646071,-942.446996,0.00012999,2]
[327049413,1715742646083,-4220.17853065,0.00012999,2]
[327049414,1715742646098,-388.15547032,0.00012999,2]
[327049415,1715742646109,-8202.55246315,0.00012999,2]
[327049416,1715742646120,-1173.538,0.00012999,2]
[327049417,1715742646131,-614.0,0.00012999,2]
[327049418,1715742646141,-289687.22584436,0.00013,2]
[327049419,1715742646152,-2187.35598326,0.00013,2]
[327049553,1715743757178,158.32,8.834e-05,2]
[327049554,1715743780882,2546.70033184,6.626e-05,2]
[327049557,1715743798895,1741.1586686,6.626e-05,2]
[327049558,1715743804575,150.0,8.834e-05,2]
[327049559,1715743804783,150.0,8.834e-05,2]
[327049560,1715743804962,150.0,8.834e-05,2]
[327049561,1715743805321,150.0,8.834e-05,2]
[327049562,1715743805610,150.0,8.834e-05,2]
[327049563,1715743805952,150.0,8.834e-05,2]
[327049564,1715743806149,150.0,8.834e-05,2]
[327049565,1715743806324,150.56597844,8.834e-05,2]
[327049567,1715743819910,3547.25502112,8.834e-05,2]
[327049568,1715743819932,3968.12140267,8.834e-05,2]
[327049577,1715743832394,-156.04687632,9.37e-05,2]
[327049578,1715743832405,-3059.56614413,9.371e-05,2]
[327049579,1715743832414,-656.14610936,9.372e-05,2]
[327049580,1715743832425,-155.0,9.372e-05,2]
[327049581,1715743832435,-207.30614229,9.372e-05,2]
[327049582,1715743832444,-945.417731,9.373e-05,2]
[327049583,1715743832454,-623.222624,9.42e-05,2]
[327049584,1715743832464,-168.80997117,9.518e-05,2]
[327049585,1715743832473,-3099.52,9.528e-05,2]
[327049586,1715743832484,-200.0,0.00011,2]
[327049587,1715743832495,-5979.27,0.00011087,2]
[327049588,1715743832506,-150.0,0.00011162,2]
[327049589,1715743832515,-27.45876269,0.00011163,2]
[327049590,1715743832527,-265.01123731,0.00011163,2]
[327049591,1715743832536,-784.0,0.00011295,2]
[327049592,1715743832546,-172.22,0.00011298,2]
[327049593,1715743832555,-1133.39,0.0001142,2]
[327049594,1715743832565,-535.17876269,0.0001145,2]
[327049595,1715743832576,-1964.82123731,0.0001145,2]
[327049596,1715743832586,-2500.0,0.0001145,2]
[327049597,1715743832595,-250.0,0.0001145,2]
[327049598,1715743832605,-229.42,0.00011455,2]
[327049599,1715743832614,-23900.0,0.000115,2]
[327049600,1715743832624,-250.0,0.00011588,2]
[327049601,1715743832633,-19600.1235667,0.000116,2]
[327049602,1715743832644,-216.0,0.00011604,2]
[327049604,1715743832653,-2261.51744168,0.000117,2]
[327049606,1715743832663,-499.99,0.00011791,2]
[327049608,1715743832673,-3099.52,0.00011792,2]
[327049610,1715743832683,-170.58,0.00011821,2]
[327049612,1715743832692,-1000.0,0.00012,2]
[327049614,1715743832701,-3271.37,0.00012087,2]
[327049616,1715743832710,-29260.39,0.00012087,2]
[327049617,1715743832720,-19999.99,0.00012087,2]
[327049619,1715743832730,-6649.59,0.00012087,2]
[327049621,1715743832739,-150.22,0.00012192,2]
[327049623,1715743832752,-420.44,0.00012192,2]
[327049626,1715743832762,-150.0,0.00012192,2]
[327049628,1715743832771,-163.35,0.00012192,2]
[327049630,1715743832781,-351.56,0.00012192,2]
[327049632,1715743832792,-523.66,0.00012192,2]
[327049634,1715743832801,-150.0,0.00012192,2]
[327049636,1715743832811,-150.0,0.00012192,2]
[327049637,1715743832820,-420.44,0.00012192,2]
[327049638,1715743832831,-523.66,0.00012192,2]
[327049639,1715743832840,-163.35,0.00012192,2]
[327049640,1715743832849,-150.0,0.00012192,2]
[327049641,1715743832858,-351.56,0.00012192,2]
[327049642,1715743832868,-150.0,0.00012192,2]
[327049643,1715743832877,-150.0,0.00012192,2]
[327049644,1715743832887,-150.0,0.00012192,2]
[327049645,1715743832896,-420.44,0.00012192,2]
[327049646,1715743832905,-523.66,0.00012192,2]
[327049647,1715743832914,-150.0,0.00012192,2]
[327049648,1715743832924,-163.35,0.00012192,2]
[327049649,1715743832933,-351.56,0.00012192,2]
[327049650,1715743832942,-150.0,0.00012192,2]
[327049651,1715743832951,-150.0,0.00012192,2]
[327049652,1715743832960,-150.0,0.00012192,2]
[327049653,1715743832969,-163.35,0.00012192,2]
[327049655,1715743832978,-420.44,0.00012192,2]
[327049657,1715743832987,-224.64,0.00012192,2]
[327049659,1715743832997,-150.0,0.00012192,2]
[327049661,1715743833007,-150.0,0.00012192,2]
[327049663,1715743833016,-163.35,0.00012192,2]
[327049665,1715743833026,-150.0,0.00012192,2]
[327049667,1715743833035,-161.66,0.00012192,2]
[327049669,1715743833044,-150.0,0.00012192,2]
[327049671,1715743833054,-150.0,0.00012192,2]
[327049673,1715743833063,-150.0,0.00012278,2]
[327049675,1715743833072,-237.965726,0.00012465,2]
[327049677,1715743833082,-851.687221,0.00012465,2]
[327049679,1715743833091,-194.262081,0.00012465,2]
[327049681,1715743833100,-155.0,0.00012549,2]
[327049683,1715743833110,-500.0,0.0001255,2]
[327049685,1715743833119,-292.47,0.00012559,2]
[327049687,1715743833129,-500.0,0.00012559,2]
[327049689,1715743833138,-500.0,0.00012568,2]
[327049691,1715743833147,-500.0,0.00012577,2]
[327049693,1715743833157,-5911.0,0.00012583,2]
[327049695,1715743833167,-1047.0,0.00012583,2]
[327049697,1715743833177,-16332.857,0.00012583,2]
[327049699,1715743833187,-500.0,0.00012585,2]
[327049701,1715743833197,-500.0,0.00012594,2]
[327049703,1715743833207,-2673.3394,0.00012599,2]
[327049705,1715743833216,-1097.0,0.000126,2]
[327049707,1715743833227,-500.0,0.00012603,2]
[327049709,1715743833236,-851.687221,0.00012621,2]
[327049711,1715743833245,-3685.672,0.00012669,2]
[327049713,1715743833254,-27277.2663,0.00012699,2]
[327049715,1715743833264,-784.0,0.00012707,2]
[327049717,1715743833273,-1104.72341932,0.0001274,2]
[327049719,1715743833283,-1500.0,0.0001274,2]
[327049721,1715743833292,-1517.53399669,0.00012766,2]
[327049723,1715743833302,-150.0,0.00012772,2]
[327049725,1715743833312,-3738.774,0.00012772,2]
[327049727,1715743833322,-851.687221,0.00012777,2]
[327049729,1715743833332,-194.262081,0.00012777,2]
[327049731,1715743833342,-150.0,0.00012781,2]
[327049733,1715743833351,-2500.0,0.00012795,2]
[327049735,1715743833361,-500.0,0.000128,2]
[327049737,1715743833370,-1223.4996,0.000128,2]
[327049739,1715743833380,-5000.0,0.00012804,2]
[327049741,1715743833390,-3626.224,0.00012805,2]
[327049743,1715743833400,-150.56016719,0.00012813,2]
[327049745,1715743833410,-253.22445355,0.00012868,2]
[327049747,1715743833419,-316.63116919,0.00012869,2]
[327049749,1715743833429,-150.0,0.00012875,2]
[327049751,1715743833439,-512.71029711,0.00012876,2]
[327049753,1715743833449,-447.42201079,0.00012876,2]
[327049755,1715743833460,-500.0,0.00012876,2]
[327049757,1715743833469,-500.0,0.00012876,2]
[327049759,1715743833479,-500.0,0.00012876,2]
[327049761,1715743833488,-500.0,0.00012876,2]
[327049763,1715743833498,-303.17835563,0.00012876,2]
[327049765,1715743833508,-500.0,0.00012876,2]
[327049767,1715743833517,-500.0,0.00012876,2]
[327049769,1715743833527,-153.48978687,0.00012876,2]
[327049771,1715743833537,-1000.0,0.00012877,2]
[327049773,1715743833546,-1000.0,0.00012877,2]
[327049775,1715743833555,-1000.0,0.00012877,2]
[327049777,1715743833565,-1000.0,0.00012877,2]
[327049778,1715743833574,-1000.0,0.00012877,2]
[327049779,1715743833584,-1000.0,0.00012877,2]
[327049780,1715743833593,-158.0,0.00012877,2]
[327049781,1715743833603,-2000.0,0.00012877,2]
[327049782,1715743833613,-229.42,0.00012887,2]
[327049783,1715743833622,-165.96,0.00012887,2]
[327049784,1715743833631,-151.48432784,0.00012892,2]
[327049785,1715743833641,-200.0,0.00012895,2]
[327049786,1715743833650,-500.0,0.00012895,2]
[327049787,1715743833659,-200.0,0.00012896,2]
[327049788,1715743833670,-1000.0,0.00012896,2]
[327049790,1715743833680,-288.976024,0.00012896,2]
[327049791,1715743833689,-500.0,0.00012896,2]
[327049794,1715743833699,-175.78481673,0.00012896,2]
[327049796,1715743833708,-326.16560859,0.00012896,2]
[327049798,1715743833718,-539.26060168,0.00012897,2]
[327049800,1715743833727,-500.0,0.00012897,2]
[327049801,1715743833737,-3559.58,0.00012897,2]
[327049802,1715743833750,-500.0,0.00012897,2]
[327049803,1715743833760,-500.0,0.00012897,2]
[327049804,1715743833770,-500.0,0.00012897,2]
[327049805,1715743833780,-523.77924349,0.00012897,2]
[327049806,1715743833790,-500.0,0.00012897,2]
[327049807,1715743833799,-500.0,0.00012897,2]
[327049808,1715743833809,-542.40194761,0.00012897,2]
[327049809,1715743833818,-503.66681125,0.00012897,2]
[327049810,1715743833827,-500.0,0.00012897,2]
[327049811,1715743833839,-502.7552335,0.00012897,2]
[327049812,1715743833849,-506.77053988,0.00012897,2]
[327049813,1715743833859,-500.0,0.00012897,2]
[327049814,1715743833868,-500.0,0.00012897,2]
[327049815,1715743833877,-500.0,0.00012897,2]
[327049816,1715743833887,-500.0,0.00012897,2]
[327049817,1715743833897,-500.0,0.00012897,2]
[327049818,1715743833906,-500.0,0.00012897,2]
[327049819,1715743833916,-500.0,0.00012897,2]
[327049820,1715743833927,-500.0,0.00012897,2]
[327049821,1715743833936,-508.00870337,0.00012897,2]
[327049822,1715743833946,-500.0,0.00012897,2]
[327049823,1715743833955,-500.0,0.00012897,2]
[327049824,1715743833965,-485.15071656,0.00012897,2]
[327049825,1715743833974,-500.0,0.00012897,2]
[327049826,1715743833984,-500.0,0.00012897,2]
[327049827,1715743833993,-500.0,0.00012897,2]
[327049828,1715743834003,-500.0,0.00012897,2]
[327049829,1715743834013,-500.0,0.00012897,2]
[327049830,1715743834022,-500.0,0.00012897,2]
[327049831,1715743834032,-500.0,0.00012897,2]
[327049832,1715743834041,-500.0,0.00012897,2]
[327049833,1715743834051,-500.0,0.00012897,2]
[327049834,1715743834061,-500.0,0.00012897,2]
[327049835,1715743834070,-500.0,0.00012897,2]
[327049836,1715743834080,-500.0,0.00012897,2]
[327049837,1715743834090,-538.96253794,0.00012897,2]
[327049838,1715743834099,-500.0,0.00012897,2]
[327049839,1715743834108,-500.0,0.00012897,2]
[327049840,1715743834118,-500.0,0.00012897,2]
[327049841,1715743834127,-500.0,0.00012897,2]
[327049842,1715743834137,-500.0,0.00012897,2]